Cogmind - Beta 10.2 @@@ ROGUE MODE // 2020.10.31 @ 01:04:50 Player: Wiperd Result: Destroyed by G-47 Trooper with Particle Gun Performance ------------- Evolutions (0) 0 Regions Visited (2) 400 Robots Destroyed (20) 100 Value Destroyed (494) 494 Prototype IDs (0) 0 Alien Tech Used (0) 0 Bonus (0) 0 TOTAL SCORE: 994 Bonus ------- None Cogmind --------- Core Integrity 0/250 Matter 21/300 Energy 100/100 System Corruption 0% Temperature Cool (9) Movement Core (50) Location -10/Mines Parts ------- > --- POWER (1) -------- (None) > --- PROPULSION (2) --- (None) > --- UTILITY (2) ------ Targeting Computer > --- WEAPON (2) ------- (None) > --- INVENTORY (4) ---- (None) Peak State ------------ > --- POWER ------------ Light Ion Engine > --- PROPULSION ------- Aluminum Leg Aluminum Leg > --- UTILITY ---------- Terrain Scanner Targeting Computer > --- WEAPON ----------- Light Assault Rifle Rocket Launcher > --- INVENTORY -------- Grenade Launcher [Rating: 8] Favorites ----------- Power Ion Engine Engine Ion Engine Propulsion Aluminum Leg Leg Aluminum Leg Utility Terrain Scanner Device Terrain Scanner Storage Small Storage Unit Processor Targeting Computer Weapon Assault Rifle Energy Gun Medium Laser Ballistic Gun Assault Rifle Launcher Grenade Launcher Build | -11 -10 -10 ------- Run | Scr Mat Min Slots Evolved . | . . . Power . | . . . Propulsion . | . . . Utility . | . . . Weapon . | . . . Parts Attached 20 | 7 9 4 Power 7 | 2 4 1 Engine 7 | 2 4 1 Core . | . . . Reactor . | . . . Propulsion 3 | 2 . 1 Treads . | . . . Leg 3 | 2 . 1 Wheel . | . . . Hover . | . . . Flight . | . . . Utility 4 | . 4 . Device 1 | . 1 . Storage 2 | . 2 . Processor 1 | . 1 . Hackware . | . . . Protection . | . . . Artifact . | . . . Weapon 6 | 3 1 2 Energy Gun 2 | 2 . . Energy Cannon . | . . . Ballistic Gun 2 | 1 . 1 Ballistic Cannon . | . . . Launcher 2 | . 1 1 Special Weapon . | . . . Impact Weapon . | . . . Slashing Weapon . | . . . Piercing Weapon . | . . . Special Melee Weapon . | . . . Unidentified Prototypes . | . . . Parts Lost 7 | . 1 6 Power 1 | . . 1 Propulsion 2 | . . 2 Utility 1 | . . 1 Weapon 3 | . 1 2 Highest Loss Streak 3 | . 1 3 Average Slot Usage (%) 92 | . 93 91 Engine 11 | . 14 8 Leg 27 | . 28 26 Device 12 | . 10 13 Storage 1 | . 2 . Processor 11 | . 8 14 Energy Gun 2 | . 4 . Ballistic Gun 13 | . 14 12 Launcher 11 | . 8 14 Naked Turns . | . . . Heaviest Build 25 | 9 25 11 Greatest Support 20 | 20 20 20 Greatest Overweight (x) 1 | . 1 . Average Overweight (x) . | . . . Largest Inventory Capacity 10 | 4 10 4 Average Capacity 4 | 4 4 4 Most Carried 4 | 2 4 2 Average Carried 1 | . 2 . Final Capacity 4 | 4 4 4 Final Carried 2 | 2 2 . Class Distribution -------------------- 100% | Mutant Dominant Class ---------------- Mutant | -10/Materials Mutant | -10/Mines Resources | -11 -10 -10 ----------- Run | Scr Mat Min Matter Collected 460 | 269 150 41 Remotely . | . . . Salvage Created 286 | 46 127 113 Parts 27 | 4 14 9 Haulers Intercepted . | . . . Recyclers Shooed . | . . . Parts Field Recycled . | . . . Retrieved Matter . | . . . Parts Self-Destructed . | . . . Prevented . | . . . Kills | -11 -10 -10 ------- Run | Scr Mat Min Combat Hostiles Destroyed 18 | 1 8 9 Guns 4 | 1 2 1 AOE 14 | . 6 8 Classes Destroyed 5 | 1 2 2 Worker 1 | . . 1 Watcher 1 | . 1 . Swarmer 9 | . 6 3 Grunt 7 | 1 2 4 Sentry 2 | . . 2 Best Kill Streak 5 | 1 3 5 Combat Bots Only 5 | 1 3 5 Max Kills in Single Turn 2 | 1 2 2 Gunslinging . | . . . Exploded 2 | . 2 2 Melee . | . . . Uniques/NPCs Destroyed . | . . . Combat | -11 -10 -10 -------- Run | Scr Mat Min Damage Taken 897 | 10 226 661 Core 258 | 10 21 227 Absorbed by Shields . | . . . Core Remaining (%) 96 | 96 . . Volleys Fired 43 | 3 17 23 Largest 2 | 2 2 2 Hottest 70 | 70 70 53 Shots Fired 69 | 6 28 35 Gun 42 | 6 23 13 Cannon . | . . . Launcher 27 | . 5 22 Special . | . . . Kinetic 33 | 3 17 13 Thermal 9 | 3 6 . Explosive 27 | . 5 22 Electromagnetic . | . . . Robot Hit Streak 8 | 3 3 8 Robot Miss Streak 3 | 1 3 1 Penetration Max . | . . . Secondary Targets . | . . . Shots Hit Robots 41 | 3 13 25 Core Hits 34 | 2 14 18 Critical Hits 1 | . 1 . Critical Kills . | . . . Critical Parts Destroyed 1 | . 1 . Melee Attacks . | . . . Impact . | . . . Slashing . | . . . Piercing . | . . . Sneak Attacks . | . . . Combat Hostiles . | . . . Follow-up Attacks . | . . . Damage Inflicted 1609 | 38 509 1062 Guns 278 | 38 146 94 Cannons . | . . . Explosions 1331 | . 363 968 Melee . | . . . Ramming . | . . . Kinetic 218 | 26 98 94 Thermal 60 | 12 48 . Explosive 1331 | . 363 968 Electromagnetic . | . . . Impact . | . . . Slashing . | . . . Piercing . | . . . Highest Corruption . | . . . Average Corruption . | . . . Corruption Purged . | . . . Overload Shots . | . . . Overflow Damage 50 | . . 50 Projectiles . | . . . Explosions 50 | . . 50 Melee . | . . . Knockbacks . | . . . Impact . | . . . Kinetic . | . . . Secondary . | . . . Self-Inflicted Damage 290 | . 48 242 Shots 9 | . 1 8 Rammed . | . . . Targets Rammed . | . . . Kicked . | . . . Crushed . | . . . Highest Temperature 78 | 33 78 35 Average Temperature 21 | 18 31 10 Received Heat Transfer 258 | 6 84 168 Siege Activations . | . . . Robots Corrupted . | . . . Combat Hostiles . | . . . Parts Fried . | . . . Impact Corruptions . | . . . Robots Melted . | . . . Combat Hostiles . | . . . Parts Melted . | . . . Heat Transferred 185 | 37 148 . Parts Sabotaged . | . . . Parts Stolen . | . . . Parts Stripped . | . . . Power Chain Reactions . | . . . Missiles Intercepted . | . . . Alert | -11 -10 -10 ------- Run | Scr Mat Min Peak Influence 257 | 20 257 240 Initial 25 | . 13 25 Average 116 | 4 97 153 Maximum Alert Level 1 | . 1 1 Low Security (%) 83 | 100 91 72 Level 1 16 | . 8 27 Level 2 . | . . . Level 3 . | . . . Level 4 . | . . . Level 5 . | . . . High Security . | . . . Max Security . | . . . Squads Dispatched . | . . . Investigation . | . . . Extermination . | . . . Reinforcement . | . . . Assault . | . . . Garrison . | . . . Intercept . | . . . Construction Impeded . | . . . Haulers Reinforced . | . . . Stealth | -11 -10 -10 --------- Run | Scr Mat Min Distress Signals . | . . . Communications Jammed . | . . . Distress Signals . | . . . Times Spotted 20 | 1 9 10 Peak Tracking Total 3 | 1 3 3 Tactical Retreats . | . . . Traps | -11 -10 -10 ------- Run | Scr Mat Min Traps Triggered . | . . . Indirectly . | . . . Trap Hack Attempts . | . . . Triggered . | . . . Disarmed . | . . . Reprogrammed . | . . . Reused . | . . . Traps Extracted . | . . . Installed . | . . . Triggered . | . . . Machines | -11 -10 -10 ---------- Run | Scr Mat Min Machines Disabled 4 | . 1 3 Max in Single Turn 1 | . 1 1 Machines Sabotaged . | . . . Garrisons Compromised . | . . . Overloaded Fab Kills . | . . . Fab Network Shutdowns . | . . . Hacking | -11 -10 -10 --------- Run | Scr Mat Min Machines Accessed 4 | . 4 . Terminals 3 | . 3 . Fabricators . | . . . Repair Stations . | . . . Recycling Units 1 | . 1 . Scanalyzers . | . . . Garrison Access . | . . . Total Hacks 10 | . 10 . Successful 8 | . 8 . Failed 2 | . 2 . Catastrophic . | . . . Database Lockouts . | . . . Manual . | . . . Terminals 8 | . 8 . Fabricators . | . . . Repair Stations . | . . . Recycling Units 2 | . 2 . Scanalyzers . | . . . Garrison Access . | . . . Terminal Hacks 6 | . 6 . Record 6 | . 6 . Fabricator Hacks . | . . . Repair Station Hacks . | . . . Recycling Unit Hacks 2 | . 2 . Recycle Component 1 | . 1 . Report Inventory 1 | . 1 . Scanalyzer . | . . . Garrison Access Hacks . | . . . Unauthorized Hacks . | . . . Terminals . | . . . Fabricators . | . . . Repair Stations . | . . . Recycling Units . | . . . Scanalyzers . | . . . Garrison Access . | . . . Data Cores Recovered . | . . . Used . | . . . Hacking Detections 4 | . 4 . Full Trace Events . | . . . Feedback Events . | . . . Feedback Blocked . | . . . Robot Schematics Acquired . | . . . Robots Built . | . . . Matter . | . . . Time . | . . . Total Robot Build Rating . | . . . Part Schematics Acquired . | . . . Parts Built . | . . . Matter . | . . . Time . | . . . Total Part Build Rating . | . . . Parts Repaired . | . . . Time . | . . . Parts Recycled 1 | . 1 . Recycled Matter . | . . . Retrieved Matter . | . . . Retrieved Components . | . . . Parts Scanalyzed . | . . . Part Schematics Acquired . | . . . Parts Damaged . | . . . Bothacking | -11 -10 -10 ------------ Run | Scr Mat Min Used RIF Installer . | . . . Robots Hacked . | . . . Non-combat . | . . . Combat . | . . . Robot Hacks Applied . | . . . Relay Couplers Released . | . . . Robots Rewired . | . . . Allies Hacked . | . . . Hacks Repelled . | . . . Allies | -11 -10 -10 -------- Run | Scr Mat Min Total Allies . | . . . Largest Group . | . . . Highest-Rated Group . | . . . Highest-Rated Ally . | . . . Total Orders . | . . . Ally Attacks . | . . . Total Damage . | . . . Kills . | . . . Allies Corrupted . | . . . Allies Melted . | . . . Intel | -11 -10 -10 ------- Run | Scr Mat Min Robot Analysis Total . | . . . Derelict Logs Recovered 2 | . . 2 Drone Launches . | . . . Drone Recoveries . | . . . Exploration | -11 -10 -10 ------------- Run | Scr Mat Min Turns Passed 1160 | 90 534 536 Spaces Moved 833 | 65 391 377 Core 18 | 18 . . Treads . | . . . Legs 815 | 47 391 377 Wheels . | . . . Hover . | . . . Flight . | . . . Fastest Speed 50 | 50 120 120 Average Speed 118 | 100 120 120 Slowest Speed 150 | 120 150 120 Overloaded Moves . | . . . Propulsion Burnouts . | . . . Robots Hopped . | . . . Cave-ins Triggered . | . . . Exploration Rate (%) 49 | 6 64 77 Regions Visited 2 Branch Regions 1 Pre-discovered Areas . | . . . Known Exits Taken . | . . . Unknown Exits Taken 2 | 1 1 . Scrap Searched . | . . . Spaces Dug . | . . . Terrain Destroyed 213 | . 41 172 Melee . | . . . Projectile . | . . . AOE 213 | . 41 172 Terrain Rammed . | . . . Walls Destroyed . | . . . Machines Disabled . | . . . Actions | -11 -10 -10 --------- Run | Scr Mat Min Total 938 | 84 427 427 Wait 17 | . . 17 Move 831 | 64 390 377 Hop . | . . . Pick Up 17 | 8 7 2 Fast Attach . | . . . Attach 11 | 6 5 . Detach 2 | 1 1 . Swap 9 | 1 4 4 Drop 8 | 1 3 4 Fire 43 | 3 17 23 Melee . | . . . Ram . | . . . Kick . | . . . Crush . | . . . Escape Stasis . | . . . Rewire . | . . . Trap . | . . . Miscellaneous . | . . . Route ------- -11/Scrapyard -10/Materials -10/Mines (discovered 1 exit: [*Mat]) History --------- Turn | Location | Event 2 | -11/Scrapyard | Met Revision 17 62 | -11/Scrapyard | Discovered new exit (range 8) 91 | -11/Scrapyard | Entered Materials 171 | -10/Materials | Discovered new exit (range 15) 334 | -10/Materials | Build established: Mutant 625 | -10/Materials | Entered Mines 706 | -10/Mines | Learned Materials emergency access door positions 795 | -10/Mines | Discovered new exit (range 10) 822 | -10/Mines | Received a Rocket Launcher from a helpful Derelict 962 | -10/Mines | Learned Materials stockpile data 1126 | -10/Mines | Core integrity fell below 50% 1160 | -10/Mines | Core integrity fell below 20% 1161 | -10/Mines | Destroyed by G-47 Trooper with Particle Gun Last Messages --------------- Lgt. Ion Engine destroyed. Destroyed Lgt. Ion Engine. Acquired 18 matter. Acquired derelict log, extracted data. Data stored: Materials stockpile data. Aluminum Leg destroyed. Lgt. Assault Rifle destroyed. Machine disabled. Y-45 Defender destroyed. Machine disabled. Y-45 Defender destroyed. The unstable cave ceiling collapses. Terrain Scanner destroyed. Destroyed Terrain Scanner. [Achievement: Remodeling] Aluminum Leg destroyed. Destroyed Aluminum Leg. Rocket Launcher destroyed. Destroyed Rocket Launcher. [Achievement: First Step to Greatness] Map ----- +----------------------------------------------------+ | ????????????# #??# #???????????? | | ????????????#### = = #?## ##??????????? | | ??????????????# # #### #????#?????? | | ??????????? ??# ##### #??????????? | | ??????????? ??# # #### ##??????????? | | ?????????? ???# ### ## ##?#????????? | | ??????????????###### #######????? | | ??????????????????# ## ##???? | | ??????????????#???# ##??? | | ???????????? ?????# ## | | ??????????????????# = | | ??#??????????##???# # | | ?#???????????????# # | | ??????????????? ## ### | | ???#######???? ##### ######## ##?? | | ??## ##???#######????# ####????#? ##??# | | ?## # # ##????#????????# #????????# #???? | | ?? ????#???????? #????????# ##??? | | ?## # ?????????### #####?????#??# ????# | | ?# ###???????# ???#?????#????# #??## | | ?# #????#### ####?##????????# #??# | | ?# #?????# g ##???????????# $#??# | | ??# #??##??? #???????????# #??## | | ???# #??#????? g #??????#???## #?#?# | | ???# ########## #????????#### #??#? | | #?## # @ #???#??? ? #???? | | ??# t #???????????# ##### | | ??# ##### ###?????????## | | ??# #?#?#### ##???#???????# | | ??# #?###??#u #?#???????#??# """ | | ??# #????#?# #??????????#?# """ | | ??# #??#??## #??????#??##?## """ | | ??# #?#??## #???#?????????# | | ??# #???## ### #?###?????# # | | ??# #??## ### ###??## # | | ??############### ## ######## ###### # ## | | ?????###### ### #??## # # # | | ?????# #?# #???# ######## # | | ?????# ##?# #???## #??##### | | ?????# ####### ##??# ###### #### # # | | ?????# #?????####???# # # # | | ?????# #??????#?????############## ## # # | | ?#???# #????????????????????????## ### | | ?????# ##############??????????## ## " | | ?????# """ """ """ #?????????## ## " | | ?????## """ """ """ #??#??????# ### " | | ??????# """ """ """ #???????### ####?# | | ????#?# #????????# ##????# " | | ??????# #????#??## ##?????# " | | ??#???# ##??????# ##?????# " | +----------------------------------------------------+ Best States ------------- Heat Dissipation 25 Energy Generation 10 Energy Capacity 250 Matter Stores 300 Matter Capacity 300 Sight Range 16 Terrain Scan Range 14 Terrain Scan Density 10 Evasion (%) 50 Targeting Accuracy 5 Item Schematics ----------------- None Robot Schematics ------------------ None Fabricated ------------ Nothing Alien Tech Used ----------------- None Achievements -------------- First Step to Greatness Remodeling Challenges ------------ None Game ------ Seed AlphaPhaseStripper Manual? 0 Play Time 00:36:48 Cumulative 1.1 hours Start 2020.10.31 @ 00:19:29 End 2020.10.31 @ 01:04:50 Sessions 1 Manual Loads 0 Difficulty Rogue Special Mode None Game No. 1 Rogue 1 Adventurer 0 Explorer 0 Win Type - Total 0 Types 0/0/0/0/0/0/0/0/0 Lore% 1 Gallery% 1 Achievement% 0 Wizard Run 0 Options --------- ASCII 0 Keyboard 0 Movement Mouse Keybinds 0 Fullscreen 1 Font 18/TerminusBold Map View 76x50 Tactical HUD 0 Map Filters NONE Filters NONE Steam 1 RUN: 3df3421c-b614-4aa0-aba6-9d6d7f79b3cc